Cogmind - Beta 16 @@@ ROGUE MODE // 2025.10.24 @ 18:30:52 Player: Fughy Result: Self-destructed Performance ------------- Evolutions (1) 500 Regions Visited (2) 400 Robots Destroyed (17) 85 Value Destroyed (230) 230 Prototype IDs (0) 0 Alien Tech Used (0) 0 Bonus (0) 0 TOTAL SCORE: 1215 Bonus ------- None Cogmind --------- Core Integrity 373/400 Matter 131/300 Energy 174/250 System Corruption 0% Temperature Cool (17) Movement Walking (260) Ox2 Location -9/Materials Parts ------- > --- POWER (1) -------- Ion Engine > --- PROPULSION (3) --- Aluminum Leg > --- UTILITY (3) ------ Large Storage Unit ECM Suite > --- WEAPON (2) ------- (None) > --- INVENTORY (15) --- Light Ion Engine Large Storage Unit Particle Gun Peak State ------------ > --- POWER ------------ Ion Engine > --- PROPULSION ------- Light Treads Light Treads > --- UTILITY ---------- Small Storage Unit Improved Terrain Scanner > --- WEAPON ----------- Medium Laser Medium Laser > --- INVENTORY -------- (None) [Rating: 9] Favorites ----------- Power Ion Engine Engine Ion Engine Propulsion Light Treads Treads Light Treads Leg Aluminum Leg Utility Improved Terrain Scanner Device Improved Terrain Scanner Storage Large Storage Unit Weapon Medium Laser Energy Gun Medium Laser Launcher Grenade Launcher Build | -11 -10 -9 ------- Run | Yrd Mat Mat Slots Evolved 2 | . . 2 Power . | . . . Propulsion 1 | . . 1 Utility 1 | . . 1 Weapon . | . . . Parts Attached 13 | 7 4 2 Power 2 | 1 . 1 Engine 2 | 1 . 1 Core . | . . . Reactor . | . . . Propulsion 4 | 2 2 . Treads 2 | 2 . . Leg 2 | . 2 . Wheel . | . . . Hover . | . . . Flight . | . . . Utility 4 | 2 1 1 Device 2 | 1 . 1 Storage 2 | 1 1 . Processor . | . . . Hackware . | . . . Protection . | . . . Artifact . | . . . Weapon 3 | 2 1 . Energy Gun 2 | 2 . . Energy Cannon . | . . . Ballistic Gun . | . . . Ballistic Cannon . | . . . Launcher 1 | . 1 . Special Weapon . | . . . Impact Weapon . | . . . Slashing Weapon . | . . . Piercing Weapon . | . . . Special Melee Weapon . | . . . Unidentified Prototypes . | . . . Parts Lost 7 | . 5 2 Power 1 | . 1 . Propulsion 2 | . 2 . Utility 1 | . 1 . Weapon 3 | . 1 2 Highest Loss Streak 4 | . 4 2 To Critical Strikes . | . . . Average Backups 2 | . 2 3 Power . | . . 1 Propulsion . | . . . Utility 1 | . 1 1 Weapon . | . 1 1 Tool/Special . | . . . Unused Backups 4 | 1 . 3 Power 1 | . . 1 Propulsion . | . . . Utility 1 | . . 1 Weapon 2 | 1 . 1 Tool/Special . | . . . Average Slot Usage (%) 95 | . 97 59 Engine 13 | . 13 11 Treads 23 | . 24 . Leg 2 | . 1 11 Device 13 | . 13 8 Storage 13 | . 14 11 Energy Gun 25 | . 26 11 Launcher 1 | . . 6 Peak Build Rating 9 | 9 9 6 Average Rating 8 | 6 8 5 On Entrance 4 | . 9 3 Avg Prop Armor Cover (%) . | . . . Naked Turns . | . . . Heaviest Build 32 | 15 30 32 Greatest Support 40 | 40 40 10 Greatest Overweight (x) 3 | . 2 3 Average Overweight (x) . | . . 2 Largest Inventory Capacity 15 | 8 15 15 Average Capacity 12 | 7 13 15 Most Carried 7 | 5 7 5 Average Carried 2 | . 2 3 Final Capacity 15 | 8 15 15 Final Carried 6 | . 6 3 Class Distribution -------------------- 100% | Mutant Dominant Class ---------------- Mutant | -10/Materials Mutant | -9/Materials Resources | -11 -10 -9 ----------- Run | Yrd Mat Mat Matter Collected 362 | 241 121 . Remotely . | . . . Salvage Created 313 | 38 275 . Parts 33 | 5 28 . Haulers Intercepted . | . . . Recyclers Shooed 1 | . 1 . Parts Field Recycled . | . . . Retrieved Matter . | . . . Parts Self-Destructed . | . . . Prevented . | . . . Parts Restored . | . . . Kills | -11 -10 -9 ------- Run | Yrd Mat Mat Combat Hostiles Destroyed 9 | . 9 . Guns 6 | . 6 . AOE 3 | . 3 . Classes Destroyed 5 | 1 4 . Worker 5 | . 5 . Tunneler 2 | 2 . . Watcher 1 | . 1 . Swarmer 6 | . 6 . Grunt 3 | . 3 . Best Kill Streak 6 | 2 6 . Combat Bots Only 4 | . 4 . Max Kills in Single Turn 5 | 1 5 . Gunslinging . | . . . Exploded 2 | . 2 . Melee . | . . . Uniques/NPCs Destroyed . | . . . Combat | -11 -10 -9 -------- Run | Yrd Mat Mat Hostile Shots Fired 94 | . 82 12 Missed 22 | . 19 3 Hits 72 | . 63 9 Projectile 72 | . 63 9 Critical Strikes 1 | . 1 . Damage Taken 843 | . 709 134 Core 196 | . 169 27 Absorbed by Shields . | . . . Core Remaining (%) 66 | 100 32 . Volleys Fired 46 | 4 40 2 Largest 2 | 2 2 1 Hottest 100 | 100 100 50 Shots Fired 90 | 8 80 2 Gun 85 | 8 75 2 Cannon . | . . . Launcher 5 | . 5 . Special . | . . . Kinetic . | . . . Thermal 85 | 8 75 2 Explosive 5 | . 5 . Electromagnetic . | . . . Robot Hit Streak 8 | 4 8 . Robot Miss Streak 6 | 1 6 2 Penetration Max . | . . . Secondary Targets . | . . . Shots Hit Robots 38 | 5 33 . Core Hits 23 | 2 21 . Critical Kills . | . . . Critical Parts Destroyed . | . . . Critical Strikes 4 | 3 1 . Burn 4 | 3 1 . Melee Attacks . | . . . Impact . | . . . Slashing . | . . . Piercing . | . . . Sneak Attacks . | . . . Combat Hostiles . | . . . Follow-up Attacks . | . . . Damage Inflicted 931 | 63 868 . Guns 535 | 63 472 . Cannons . | . . . Explosions 396 | . 396 . Melee . | . . . Ramming . | . . . Kinetic . | . . . Thermal 535 | 63 472 . Explosive 396 | . 396 . Electromagnetic . | . . . Impact . | . . . Slashing . | . . . Piercing . | . . . Highest Corruption . | . . . Average Corruption . | . . . Corruption Purged . | . . . Corruption Blocked . | . . . Overload Shots . | . . . Overflow Damage . | . . . Projectiles . | . . . Explosions . | . . . Melee . | . . . Knockbacks . | . . . Impact . | . . . Kinetic . | . . . Secondary . | . . . Self-Inflicted Damage 13 | . 13 . Shots 1 | . 1 . Rammed 1 | . 1 . Targets Rammed 1 | . 1 . Kicked . | . . . Crushed . | . . . Highest Temperature 619 | 156 619 17 Average Temperature 211 | 78 229 11 Received Heat Transfer 267 | . 231 36 Effects 25 | . 25 . Shutdowns 3 | . 3 . Energy Bleed 3 | . 3 . Interference 1 | . 1 . Matter Decay 5 | . 5 . Short Circuit 2 | . 2 . Damage (minor) 4 | . 4 . Damage (major) 6 | . 6 . Damage (core) 1 | . 1 . Siege Activations . | . . . Martial Activations . | . . . Shielding Activations . | . . . Robots Disrupted . | . . . Combat Hostiles . | . . . Robots Corrupted . | . . . Combat Hostiles . | . . . Parts Fried . | . . . Impact Corruptions . | . . . Robots Melted . | . . . Combat Hostiles . | . . . Parts Melted 8 | 3 5 . Heat Transferred 1887 | 407 1480 . Parts Sabotaged . | . . . Parts Stolen . | . . . Parts Stripped . | . . . Power Chain Reactions . | . . . Alert | -11 -10 -9 ------- Run | Yrd Mat Mat Maximum Alert Level . | . . . Low Security (%) 100 | 100 100 100 Level 1 . | . . . Level 2 . | . . . Level 3 . | . . . Level 4 . | . . . Level 5 . | . . . High Security . | . . . Max Security . | . . . Peak Influence 190 | 5 190 46 Initial 46 | . . 46 Average 32 | . 38 39 Influence Increases 352 | 10 342 . Destroy 0b10 Robot/C 180 | . 180 . Destroy 0b10 Robot/NC 40 | 10 30 . Destroy Leader 42 | . 42 . Successful Hack 7 | . 7 . Disable Machine 30 | . 30 . Destroy Structure 23 | . 23 . Lose Combat Pursuer 30 | . 30 . Influence Decreases 336 | 10 232 94 Entered New Map 64 | . . 64 Time Decay 202 | 10 182 10 Lost Part 70 | . 50 20 Squads Dispatched 2 | . 2 . Investigation . | . . . Extermination . | . . . Reinforcement 2 | . 2 . Assault . | . . . Garrison . | . . . Intercept . | . . . Searches Triggered . | . . . Construction Impeded . | . . . Haulers Reinforced . | . . . Active Scanning Responses . | . . . Cargo Convoy Interrupts . | . . . Stealth | -11 -10 -9 --------- Run | Yrd Mat Mat Distress Signals 3 | . 3 . Communications Jammed . | . . . Distress Signals . | . . . Times Spotted 24 | . 22 2 Peak Tracking Total 6 | . 6 2 Tactical Retreats 1 | . 1 . Traps | -11 -10 -9 ------- Run | Yrd Mat Mat Traps Triggered . | . . . Indirectly . | . . . Trap Hack Attempts . | . . . Triggered . | . . . Disarmed . | . . . Reprogrammed . | . . . Reused . | . . . Traps Extracted . | . . . Installed . | . . . Triggered . | . . . Machines | -11 -10 -9 ---------- Run | Yrd Mat Mat Machines Disabled 2 | . 2 . Max in Single Turn 1 | . 1 . Machines Repaired . | . . . Machines Dismantled . | . . . Machines Sabotaged . | . . . Overloaded Fab Kills . | . . . Hacking | -11 -10 -9 --------- Run | Yrd Mat Mat Machines Accessed 2 | . 2 . Terminals 2 | . 2 . Fabricators . | . . . Repair Stations . | . . . Recycling Units . | . . . Scanalyzers . | . . . Garrison Access . | . . . Total Hacks 2 | . 2 . Successful 2 | . 2 . Failed . | . . . Catastrophic . | . . . Database Lockouts . | . . . Manual . | . . . Terminals 2 | . 2 . Fabricators . | . . . Repair Stations . | . . . Recycling Units . | . . . Scanalyzers . | . . . Garrison Access . | . . . Terminal Hacks 2 | . 2 . Transport Status 1 | . 1 . Recall Investigation 1 | . 1 . Fabricator Hacks . | . . . Repair Station Hacks . | . . . Recycling Unit Hacks . | . . . Scanalyzer . | . . . Garrison Access Hacks . | . . . Unauthorized Hacks . | . . . Terminals . | . . . Fabricators . | . . . Repair Stations . | . . . Recycling Units . | . . . Scanalyzers . | . . . Garrison Access . | . . . Data Cores Recovered . | . . . Used . | . . . Hacking Detections 1 | . 1 . Full Trace Events . | . . . Feedback Events . | . . . Feedback Blocked . | . . . Robot Schematics Acquired . | . . . Robots Built . | . . . Authchips . | . . . Time . | . . . Total Robot Build Rating . | . . . Part Schematics Acquired . | . . . Parts Built . | . . . Authchips . | . . . Time . | . . . Total Part Build Rating . | . . . Part Studies Acquired . | . . . Parts Repaired . | . . . Time . | . . . Parts Recycled . | . . . Recycled Matter . | . . . Retrieved Matter . | . . . Retrieved Components . | . . . Parts Scanalyzed . | . . . Part Schematics Acquired . | . . . Parts Damaged . | . . . Bothacking | -11 -10 -9 ------------ Run | Yrd Mat Mat Used RIF Installer . | . . . Robots Hacked . | . . . Non-combat . | . . . Combat . | . . . Robot Hacks Applied . | . . . Relay Couplers Released . | . . . Fabnet Peak Effective % . | . . . Robots Rewired . | . . . Allies Hacked . | . . . Hacks Repelled . | . . . Allies | -11 -10 -9 -------- Run | Yrd Mat Mat Total Allies . | . . . Largest Group . | . . . Highest-Rated Group . | . . . Highest-Rated Ally . | . . . Total Orders . | . . . Ally Attacks . | . . . Total Damage . | . . . Kills . | . . . Allies Corrupted . | . . . Allies Melted . | . . . Intel | -11 -10 -9 ------- Run | Yrd Mat Mat Active Infowar (turns) 698 | 80 586 32 Terrain 666 | 80 586 . ECM 32 | . . 32 Robot Analysis Total . | . . . Derelict Logs Recovered . | . . . Drone Launches . | . . . Drone Recoveries . | . . . Exploration | -11 -10 -9 ------------- Run | Yrd Mat Mat Turns Passed 889 | 147 709 33 Spaces Moved 436 | 89 339 8 Core 20 | 20 . . Treads 379 | 69 310 . Legs 37 | . 29 8 Wheels . | . . . Hover . | . . . Flight . | . . . Fastest Speed 50 | 50 160 260 Average Speed 164 | 135 167 321 Slowest Speed 330 | 160 260 330 Overloaded Moves . | . . . Propulsion Burnouts . | . . . Robots Hopped . | . . . Potential Cave-ins . | . . . Cave-ins Triggered . | . . . Exploration Rate (%) 16 | 5 43 2 Regions Visited 2 Branch Regions . Pre-discovered Areas . | . . . Known Exits Taken . | . . . Unknown Exits Taken 2 | 1 1 . Scrap Searched . | . . . Spaces Dug . | . . . Terrain Destroyed 24 | . 24 . Melee . | . . . Projectile . | . . . AOE 24 | . 24 . Terrain Rammed . | . . . Walls Destroyed . | . . . Machines Disabled . | . . . Actions | -11 -10 -9 --------- Run | Yrd Mat Mat Total 518 | 108 397 13 Wait . | . . . Move 434 | 88 338 8 Hop . | . . . Pick Up 17 | 8 9 . Fast Attach . | . . . Attach 11 | 7 1 3 Detach . | . . . Swap 6 | . 6 . Drop 3 | 1 2 . Fire 46 | 4 40 2 Melee . | . . . Ram . | . . . Kick . | . . . Crush 1 | . 1 . Escape Stasis . | . . . Rewire . | . . . Trap . | . . . Miscellaneous . | . . . Route ------- -11/Scrapyard -10/Materials (discovered 2 exits: [*Mat] / [*Sub]) -9/Materials History --------- Turn | Location | Event 4 | -11/Scrapyard | Discovered new exit (range 16) 148 | -11/Scrapyard | Entered Materials 330 | -10/Materials | Build established: Mutant 417 | -10/Materials | Discovered new exit (range 9) 735 | -10/Materials | Core integrity fell below 50% 829 | -10/Materials | Discovered new exit (range 8) 857 | -10/Materials | Entered another Materials area 857 | -9/Materials | Evolved 2 slots: Propulsion x1, Utility x1 878 | -9/Materials | Lost 4 parts (1p1n1u1w) 890 | -9/Materials | Self-destructed Last Messages --------------- 00799_ U-05 Engineer builds a Door. 00799_ U-05 Engineer builds a Wall. 00800_ R-06 Scavenger collects Wheel. 00801_ K-01 Serf collects debris. 00804_ U-05 Engineer lays Concrete. 00805_ K-01 Serf collects debris. 00806_ U-05 Engineer lays Concrete. 00809_ T-07 Excavator is excavating. 00829_ EXIT=FOUND 00831_ Aluminum Leg destroyed. 00833_ Ion Engine destroyed. 00835_ Broken Imp. Terrain Scanner destroyed. 00845_ Acquired Ion Engine. 00847_ Med. Laser destroyed. PARAMETERS=PROPULSION+1,UTILITY+1 LOCATION=UNKNOWN GOAL=ESCAPE 00881_ Grenade Launcher destroyed. 00885_ K-01 Serf collects debris. 00890_ Med. Laser destroyed. Map ----- +----------------------------------------------------+ | ?????????????????????????????????????????????????? | | ?????????????????????????????????????????????????? | | ?????????????????????????????????????????????????? | | ?????????????????????????????????????????????????? | | ?????????????????????????????????????????????????? | | ?????????????????????????????????????????????????? | | ?????????????????????????????????????????????????? | | ?????????????????????????????????????????????????? | | ?????????????????????????????????????????????????? | | ?????????????????????????????????????????????????? | | ??????????????????????? ???????????????????????? | | ?????????????????????? Y ???????????????????????? | | ?????????????????????? ???????????????????????? | | ?????????????????????? ???????????????????????? | | ??????????????????????# #??????????????????????? | | ??????????????????????# #??????????????????????? | | ??????????????????????+ #??????????????????????? | | ??????????????????????# #??????????????????????? | | ??????????????????????# k #??????????????????????? | | ??????????????????????#s #??????????????????????? | | ??????????????????????# #??????????????????????? | | ??????????????????????# #??????????????????????? | | ??????????????????????# #??????????????????????? | | ??????????????????????# #??????????????????????? | | ??????????????????????# #??????????????????????? | | ??????????????????????# @#??????????????????????? | | ??????????????????????# #??????????????????????? | | ??????????????????????# #??????????????????????? | | ??????????????????????# #??????????????????????? | | ??????????????????????# #??????????????????????? | | ??????????????????????# #??????????????????????? | | ??????????????????????# #??????????????????????? | | ??????????????????????# #??????????????????????? | | ??????????????????????# #??????????????????????? | | ??????????????????????#####??????????????????????? | | ?????????????????????????????????????????????????? | | ?????????????????????????????????????????????????? | | ?????????????????????????????????????????????????? | | ?????????????????????????????????????????????????? | | ?????????????????????????????????????????????????? | | | | | | | | | | | | | | | | | | | | | +----------------------------------------------------+ Best States ------------- Heat Dissipation 28 Energy Generation 10 Energy Capacity 250 Matter Stores 300 Matter Capacity 300 Sight Range 16 Terrain Scan Range 16 Terrain Scan Density 10 ECM Strength 1 Evasion (%) 50 Recoil Reduction 2 Item Schematics ----------------- None Robot Schematics ------------------ None Fabricated ------------ Nothing Repaired ---------- Nothing Studied --------- None Alien Tech Used ----------------- None Achievements -------------- None Challenges ------------ None Game ------ Seed ModifiedHeavyDirector Manual? 0 Play Time 00:09:06 Cumulative 1.3 hours Start 2025.10.24 @ 18:21:59 End 2025.10.24 @ 18:30:52 Sessions 1 Manual Loads 0 Difficulty Rogue Special Mode None Game No. 4 Rogue 2 Adventurer 2 Explorer 0 Win Type - Total 0 Types 0/0/0/0/0/0/0/0/0/0 Lore% 2 Gallery% 5 Achievement% 6 Wizard Run 0 Options --------- Layout 1 ASCII 0 Keyboard 0 Movement Mouse Keybinds 0 Fullscreen 1 Font 24/X11 Map View 50x35 Zoom Use 0% Tactical HUD 1 Map Filters NONE Filters NONE Steam 1 RUN: cff29204-8205-4588-b699-0957dddd027d